bitfinex-derivatives/quotes_ETHF0:USTF0_20230105
["timestamp","ask_amount","ask_price","bid_price","bid_amount"]
[1672909755174,2.98459175,1247.8,1247.6,3.0]
[1672909755380,1.1938367,1247.8,1247.6,3.0]
[1672909755592,1.1938367,1247.8,1247.6,5.39738991]
[1672909756008,4.99855505,1247.9,1247.6,5.39738991]
[1672909756009,6.19239175,1247.9,1247.6,5.39738991]
[1672909756859,7.99855505,1247.9,1247.6,5.39738991]
[1672909757704,4.99855505,1247.9,1247.6,5.39738991]
[1672909757915,7.99855505,1247.9,1247.6,5.39738991]
[1672909758330,3.0,1247.8,1247.6,3.0]
[1672909758958,7.99855505,1247.9,1247.6,5.39738991]
[1672909759168,7.99855505,1247.9,1247.6,3.0]
[1672909759383,3.0,1247.8,1247.6,3.0]
[1672909759597,3.0,1247.8,1247.6,5.39738991]
[1672909760019,3.0,1247.8,1247.6,3.0]
[1672909761179,3.2078,1247.7,1247.6,3.0]
[1672909761809,6.2078,1247.9,1247.6,5.39738991]
[1672909762532,6.2078,1247.9,1247.6,8.60518991]
[1672909763382,4.99855505,1248.1,1247.7,2.39738991]
[1672909763691,7.99855505,1248.1,1247.8,3.0]
[1672909765683,4.99855505,1248.1,1247.8,3.0]
[1672909765894,7.99855505,1248.1,1247.8,8.60518991]
[1672909767795,4.99855505,1248.1,1247.8,8.60518991]
[1672909768622,4.99855505,1248.1,1247.8,13.60518991]
[1672909768835,1.79075505,1248.2,1247.9,2.39738991]
[1672909769369,1.79075505,1248.2,1248.0,3.0]
[1672909769580,7.3895876,1248.3,1248.0,3.0]
[1672909769786,1.79075505,1248.2,1248.0,3.0]
[1672909770005,4.79075505,1248.2,1248.0,3.0]
[1672909770937,3.2078,1248.1,1248.0,3.0]
[1672909771152,4.99855505,1248.1,1248.0,3.0]
[1672909772102,3.2078,1248.1,1248.0,3.0]
[1672909773253,4.99855505,1248.1,1248.0,3.0]
[1672909773465,3.2078,1248.1,1248.0,3.0]
[1672909774729,3.2078,1248.1,1247.9,1.79584496]
[1672909774939,4.99855505,1248.1,1247.9,1.79584496]
[1672909775149,3.2078,1248.1,1247.9,1.79584496]
[1672909776201,3.2078,1248.1,1247.9,4.19323487]
[1672909776413,4.99855505,1248.1,1248.0,3.0]
[1672909776618,3.2078,1248.1,1248.0,3.0]
[1672909776834,1.79075505,1248.2,1248.0,13.00364496]
[1672909777044,1.79075505,1248.2,1248.0,9.79584496]
[1672909777464,10.3895876,1248.3,1248.0,12.19323487]
[1672909777673,10.3895876,1248.3,1248.0,15.40103487]
[1672909778407,3.0,1248.1,1248.0,9.79584496]
[1672909778825,1.79075505,1248.2,1248.0,9.79584496]
[1672909779241,4.79075505,1248.2,1248.0,9.79584496]
[1672909779453,1.79075505,1248.2,1248.0,9.79584496]
[1672909779769,1.79075505,1248.2,1248.0,12.19323487]
[1672909780401,1.79075505,1248.2,1248.0,9.79584496]
[1672909780823,10.3895876,1248.3,1248.1,1.79584496]
[1672909781031,10.3895876,1248.3,1248.2,3.0]
[1672909782185,7.99855505,1248.3,1248.2,3.0]
[1672909782401,4.99855505,1248.3,1248.2,3.0]
[1672909782601,7.99855505,1248.3,1248.2,3.0]
[1672909783350,4.99855505,1248.3,1248.2,3.0]
[1672909784295,7.1817876,1248.4,1248.2,8.0]
[1672909785136,1.79075505,1248.4,1248.2,8.0]
[1672909785659,4.79075505,1248.4,1248.2,8.0]
[1672909785868,1.79075505,1248.4,1248.2,8.0]
[1672909786082,7.1817876,1248.4,1248.2,8.0]
[1672909786497,4.79075505,1248.4,1248.2,8.0]
[1672909786705,1.79075505,1248.3,1248.2,8.0]
[1672909786916,7.1817876,1248.4,1248.2,8.0]
[1672909787128,4.1817876,1248.4,1248.2,8.0]
[1672909787448,4.79075505,1248.4,1248.2,9.79584496]
[1672909787658,1.79075505,1248.4,1248.2,9.79584496]
[1672909787967,1.79075505,1248.4,1248.2,17.79484496]
[1672909788387,7.3895876,1248.5,1248.2,17.79484496]
[1672909789024,4.99855505,1248.5,1248.2,17.79484496]
[1672909790177,7.3895876,1248.5,1248.2,17.79484496]
[1672909790802,7.38692342,1248.5,1248.2,17.79484496]
[1672909791008,1.79075505,1248.5,1248.2,15.999]
[1672909791223,3.0,1248.4,1248.2,15.999]
[1672909792063,3.0,1248.4,1248.2,8.0]
[1672909792592,4.79075505,1248.4,1248.2,8.0]
[1672909792803,3.0,1248.4,1248.2,8.0]
[1672909793218,3.0,1248.4,1248.2,9.79584496]
[1672909793429,3.0,1248.4,1248.2,8.0]
[1672909793642,7.99855505,1248.5,1248.2,9.79584496]
[1672909793852,3.0,1248.4,1248.2,9.79584496]
[1672909794282,4.79075505,1248.4,1248.2,8.0]
[1672909794698,3.0,1248.4,1248.2,8.0]
[1672909795010,4.79075505,1248.4,1248.2,9.79584496]
[1672909795226,4.79075505,1248.4,1248.2,8.0]
[1672909795757,4.79075505,1248.4,1248.2,9.79584496]
[1672909795974,4.79075505,1248.4,1248.2,8.0]
[1672909796913,4.79075505,1248.4,1248.2,9.79584496]
[1672909797756,4.79075505,1248.4,1248.2,8.0]
[1672909798803,4.79075505,1248.4,1248.2,9.79584496]
[1672909799008,7.1817876,1248.4,1248.2,8.0]
[1672909799534,4.79075505,1248.4,1248.2,8.0]
[1672909799739,7.1817876,1248.4,1248.2,8.0]
[1672909799957,4.79075505,1248.4,1248.2,8.0]
[1672909800377,4.79075505,1248.4,1248.2,9.79584496]
[1672909801213,4.99855505,1248.3,1248.2,5.0]
[1672909801425,7.3895876,1248.3,1248.2,5.0]
[1672909801843,5.59883255,1248.3,1248.2,5.0]
[1672909802580,5.59883255,1248.3,1248.1,1.79584496]
[1672909802794,2.29177456,1248.2,1248.1,1.79584496]
[1672909803631,1.79177456,1248.2,1248.1,1.79584496]
[1672909803850,1.79177456,1248.3,1248.1,11.81618836]
[1672909804056,1.79177456,1248.3,1248.2,9.79754266]
[1672909804262,7.18280711,1248.4,1248.2,12.19493257]
[1672909804482,7.18280711,1248.4,1248.3,3.0]
[1672909805010,5.39103255,1248.4,1248.3,3.0]
[1672909806267,5.39103255,1248.4,1248.3,4.79754266]
[1672909806473,5.39103255,1248.4,1248.2,12.19493257]
[1672909806690,1.7930856,1248.3,1248.2,12.19493257]
[1672909808996,1.7930856,1248.3,1248.2,9.79754266]
[1672909809305,1.7930856,1248.3,1248.2,12.19493257]
[1672909810682,1.7930856,1248.4,1248.2,12.4074257]
[1672909810894,1.7930856,1248.4,1248.3,1.79828618]
[1672909811204,1.7930856,1248.4,1248.3,4.19600108]
[1672909811627,1.7930856,1248.4,1248.3,1.79828618]
[1672909811834,4.18411815,1248.5,1248.3,2.3977149]
[1672909812044,2.39103255,1248.5,1248.4,1.79840538]
[1672909812254,4.18515235,1248.5,1248.4,4.79840538]
[1672909812782,4.18515235,1248.5,1248.4,4.79279327]
[1672909814982,2.39103255,1248.5,1248.4,4.79279327]
[1672909815192,4.18534769,1248.5,1248.4,4.79279327]
[1672909815403,1.79431514,1248.5,1248.4,4.79279327]
[1672909815614,1.79431514,1248.5,1248.4,7.19050817]
[1672909815931,4.18534769,1248.5,1248.4,4.79279327]
[1672909816242,2.39103255,1248.5,1248.4,4.79279327]
[1672909818865,2.39103255,1248.5,1248.3,4.8977149]
[1672909818866,8.38617067,1248.5,1248.3,4.8977149]
[1672909819081,1.79479575,1248.4,1248.3,4.8977149]
[1672909819292,7.1858283,1248.4,1248.3,4.8977149]
[1672909819822,4.1858283,1248.4,1248.3,4.8977149]
[1672909823072,4.1858283,1248.4,1248.3,6.31735066]
[1672909824551,4.1858283,1248.4,1248.3,4.8977149]
[1672909825282,2.39103255,1248.4,1248.3,4.8977149]
[1672909826653,4.18646854,1248.4,1248.3,6.31736103]
[1672909826864,2.39103255,1248.4,1248.3,6.31736151]
[1672909827695,2.39103255,1248.4,1248.3,4.8977149]
[1672909828861,2.39103255,1248.4,1248.3,2.3977149]
[1672909829073,5.39103255,1248.4,1248.3,2.3977149]
[1672909829278,5.39103255,1248.4,1248.2,10.38548571]
[1672909829485,5.59883255,1248.3,1248.2,2.3977149]
[1672909829701,5.59883255,1248.3,1248.1,2.3977149]
[1672909829911,2.89103255,1248.2,1248.1,2.3977149]
[1672909830650,2.89103255,1248.2,1248.1,3.0]
[1672909830860,2.39103255,1248.2,1248.1,5.3977149]
[1672909831273,4.18571934,1248.2,1248.1,5.3977149]
[1672909832536,1.79468679,1248.2,1248.1,7.40757809]
[1672909832848,7.39351934,1248.3,1248.1,15.40657809]
[1672909833063,7.39351934,1248.3,1248.2,2.3992824]
[1672909833685,5.59883255,1248.3,1248.1,8.38705321]
[1672909833897,1.79452906,1248.2,1248.1,5.3992824]
[1672909834106,4.79452906,1248.2,1248.1,6.81908858]
[1672909834535,1.79452906,1248.2,1248.1,6.81908858]
[1672909834747,1.79452906,1248.2,1248.1,9.80685939]
[1672909835586,1.79452906,1248.2,1248.1,6.81908858]
[1672909835791,1.79452906,1248.2,1248.1,9.80685939]
[1672909836002,1.79452906,1248.2,1248.1,6.81908858]
[1672909837269,1.79452906,1248.2,1248.1,14.81808858]
[1672909837479,1.79452906,1248.2,1248.1,17.80585939]
[1672909839059,7.39336161,1248.3,1248.1,17.80585939]
[1672909839263,1.79452906,1248.2,1248.1,16.38605321]
[1672909839475,1.79452906,1248.2,1248.1,17.80584263]
[1672909840632,1.79452906,1248.2,1248.1,14.81807182]
[1672909842209,5.00232906,1248.3,1248.1,15.40656023]
[1672909842419,5.00232906,1248.3,1248.2,2.39878173]
[1672909843997,1.79452906,1248.3,1248.2,2.39878173]
[1672909844523,4.18556161,1248.3,1248.2,2.39878173]
[1672909845255,1.79452906,1248.3,1248.2,2.39878173]
[1672909846521,1.79452906,1248.3,1248.2,3.81851592]
[1672909849140,1.79452906,1248.3,1248.2,2.39878173]
[1672909849975,1.79452906,1248.3,1248.2,3.81852034]
[1672909850295,1.79452906,1248.3,1248.2,2.39878173]
[1672909851037,1.79452906,1248.3,1248.2,3.81851975]
[1672909851249,1.79452906,1248.3,1248.2,3.81851973]
[1672909851563,1.79452906,1248.3,1248.2,2.39878173]
[1672909852196,1.79452906,1248.3,1248.2,3.81851975]
[1672909852929,1.79452906,1248.3,1248.2,6.80629056]
[1672909853143,1.79452906,1248.4,1248.2,17.40650883]
[1672909853346,1.79452906,1248.4,1248.3,9.80647754]
[1672909853557,1.79452906,1248.4,1248.3,7.40750883]
[1672909854403,1.79452906,1248.4,1248.3,6.81871294]
[1672909855027,1.79452906,1248.4,1248.3,9.80648375]
[1672909855455,1.79452906,1248.4,1248.3,9.8066408]
[1672909855665,1.79452906,1248.4,1248.3,7.40750883]
[1672909855874,1.79452906,1248.4,1248.3,9.80664138]
[1672909857661,1.79452906,1248.4,1248.3,6.81887057]
[1672909857873,1.79452906,1248.4,1248.3,9.80664138]
[1672909858391,1.79452906,1248.4,1248.3,17.80564138]
[1672909860498,1.79452906,1248.4,1248.3,15.40650883]
[1672909861130,4.18556161,1248.5,1248.3,15.40650883]
[1672909861346,4.18556161,1248.5,1248.4,5.39876749]
[1672909862496,1.79452906,1248.5,1248.4,6.81825617]
[1672909862699,1.79452906,1248.5,1248.4,9.80602698]
[1672909862912,1.79452906,1248.5,1248.4,9.80587463]
[1672909863127,1.79452906,1248.5,1248.4,6.81810382]
[1672909863336,1.79452906,1248.5,1248.4,5.39861514]
[1672909863752,1.79452906,1248.5,1248.4,6.8180927]
[1672909863969,4.18556161,1248.6,1248.4,9.80586351]
[1672909864181,4.18556161,1248.6,1248.4,8.38638595]
[1672909864914,1.79452906,1248.5,1248.4,5.39861514]
[1672909865125,7.18556161,1248.6,1248.4,6.81806068]
[1672909865331,4.18556161,1248.6,1248.5,1.19866781]
[1672909867442,1.79452906,1248.6,1248.5,1.19866781]
[1672909867652,4.18556161,1248.6,1248.5,1.19866781]
[1672909869220,1.79452906,1248.6,1248.5,1.19866781]
[1672909871220,4.18556161,1248.6,1248.5,1.19866781]
[1672909872479,4.18556161,1248.6,1248.5,9.40646781]
[1672909872794,2.99513812,1248.7,1248.5,15.61473722]
[1672909872795,1.79452906,1248.7,1248.5,15.61473722]
[1672909873111,4.18556161,1248.8,1248.6,6.69310099]
[1672909873324,1.79452906,1248.8,1248.7,4.19743224]
[1672909873532,4.18556161,1248.8,1248.7,4.19743224]
[1672909873957,1.79452906,1248.8,1248.7,4.19743224]
[1672909874167,4.18556161,1248.8,1248.7,4.19743224]
[1672909875216,1.79452906,1248.8,1248.7,3.0]
[1672909875529,4.79452906,1248.8,1248.7,3.0]
[1672909875845,1.79452906,1248.8,1248.7,3.0]
[1672909876054,4.18556161,1248.8,1248.7,3.0]
[1672909876464,7.18556161,1248.8,1248.7,3.0]
[1672909876680,4.18556161,1248.8,1248.7,3.0]
[1672909877317,1.79452906,1248.8,1248.7,3.0]
[1672909877733,4.79452906,1248.8,1248.7,3.0]
[1672909877943,1.79452906,1248.8,1248.7,3.0]
[1672909878150,1.79452906,1248.8,1248.6,5.49447552]
[1672909878151,7.18556161,1248.8,1248.6,5.49447552]
[1672909878365,1.79452906,1248.7,1248.6,3.69743224]
[1672909878678,4.79452906,1248.7,1248.6,3.69743224]
[1672909878888,4.79452906,1248.7,1248.6,1.19743224]
[1672909879103,3.0,1248.6,1248.5,10.99447552]
[1672909879936,8.00232906,1248.7,1248.5,9.79704328]
[1672909880148,8.00232906,1248.7,1248.6,4.19720969]
[1672909880680,5.00232906,1248.7,1248.6,4.19720969]
[1672909881624,5.00232906,1248.7,1248.6,5.99425297]
[1672909882349,4.99985549,1248.7,1248.6,5.99425297]
[1672909884567,1.79205549,1248.7,1248.6,5.99425297]
[1672909884985,1.79205549,1248.7,1248.6,4.19720969]
[1672909885199,1.79205549,1248.7,1248.6,5.99425297]
[1672909889080,1.79205549,1248.7,1248.6,2.99512808]
[1672909889296,2.39103255,1248.7,1248.6,4.1980848]
[1672909890354,2.39103255,1248.7,1248.6,5.99512808]
[1672909893293,2.39103255,1248.7,1248.6,4.79704328]
[1672909895175,5.38617067,1248.7,1248.6,5.99615719]
[1672909895380,2.39103255,1248.7,1248.6,4.79208762]
[1672909895599,5.38617067,1248.7,1248.6,5.99127406]
[1672909897276,2.99513812,1248.7,1248.6,5.99127406]
[1672909897483,2.99513812,1248.7,1248.6,2.99127406]
[1672909897702,9.80194561,1248.8,1248.5,6.19918644]
[1672909897914,6.19913227,1248.6,1248.5,6.19918644]
[1672909898125,9.19913227,1248.6,1248.5,6.19918644]
[1672909901381,6.2078,1248.6,1248.4,1.19918644]
[1672909901593,5.88144439,1248.5,1248.4,1.19918644]
[1672909901802,3.48969133,1248.5,1248.4,1.19918644]
[1672909902335,3.48969133,1248.5,1248.4,4.19918644]
[1672909902746,5.88141235,1248.5,1248.4,4.19918644]
[1672909903167,2.39172102,1248.5,1248.4,4.19918644]
[1672909903384,2.39172102,1248.5,1248.4,3.0]
[1672909903800,5.39172102,1248.5,1248.3,10.39605771]
[1672909904017,5.39172102,1248.5,1248.4,3.0]
[1672909905274,5.39172102,1248.5,1248.4,4.19909784]
[1672909905804,8.59952102,1248.5,1248.4,4.19909784]
[1672909906117,5.59952102,1248.5,1248.4,4.19909784]
[1672909906643,5.59952102,1248.5,1248.4,3.0]
[1672909907171,5.59952102,1248.5,1248.4,4.19897921]
[1672909908116,5.59952102,1248.5,1248.4,3.0]
[1672909908847,3.2078,1248.5,1248.4,3.0]
[1672909913479,5.38141235,1248.6,1248.4,3.0]
[1672909913680,5.38141235,1248.6,1248.5,1.19878972]
[1672909913896,8.58921235,1248.6,1248.5,1.19878972]
[1672909914949,5.38141235,1248.6,1248.5,1.19878972]
[1672909915469,8.58921235,1248.6,1248.5,1.19878972]
[1672909919989,5.38141235,1248.6,1248.5,1.19878972]
[1672909920202,8.58921235,1248.6,1248.5,1.19878972]
[1672909920519,5.59952102,1248.6,1248.5,1.19878972]
[1672909921156,8.58921235,1248.6,1248.5,1.19878972]
[1672909924627,5.38141235,1248.6,1248.5,1.19878972]
[1672909924835,6.19749133,1248.6,1248.5,1.19878972]
[1672909925045,2.98969133,1248.6,1248.5,1.19878972]
[1672909925257,6.19749133,1248.6,1248.5,1.19878972]
[1672909925463,2.98969133,1248.6,1248.5,1.19878972]
[1672909925673,6.19749133,1248.6,1248.5,1.19878972]
[1672909926623,8.58906464,1248.6,1248.5,1.19878972]
[1672909927150,6.19749133,1248.6,1248.5,1.19878972]
[1672909928410,5.60013123,1248.6,1248.4,13.39505771]
[1672909928615,5.60013123,1248.6,1248.4,16.38282852]
[1672909928828,5.60013123,1248.6,1248.4,13.39505771]
[1672909929355,5.60013123,1248.6,1248.4,16.38282852]
[1672909929770,2.39233123,1248.6,1248.4,16.38282852]
[1672909931353,5.38202256,1248.6,1248.4,16.38282852]
[1672909932831,5.38202256,1248.6,1248.5,2.39605771]
[1672909933452,8.58982256,1248.6,1248.5,2.39605771]
[1672909934191,5.38202256,1248.6,1248.5,2.39605771]
[1672909934396,8.58982256,1248.6,1248.5,2.39605771]
[1672909935030,6.19749133,1248.6,1248.5,2.39605771]
[1672909935451,5.60165759,1248.6,1248.5,3.81550033]
[1672909936605,2.39385759,1248.6,1248.5,3.81550033]
[1672909937331,5.38354892,1248.6,1248.5,3.81550033]
[1672909938390,2.39385759,1248.6,1248.5,3.81550033]
[1672909938589,5.38354892,1248.6,1248.5,3.81550033]
[1672909939547,5.38354892,1248.6,1248.5,2.39605771]
[1672909939969,8.59134892,1248.6,1248.5,2.39605771]
[1672909941229,5.60165759,1248.6,1248.5,3.81550134]
[1672909941750,8.59134892,1248.6,1248.5,3.81550134]
[1672909942799,8.59134892,1248.6,1248.5,2.39605771]
[1672909943003,5.60165759,1248.6,1248.5,3.8154722]
[1672909944054,5.60165759,1248.6,1248.5,11.8144722]
[1672909944693,2.39385759,1248.6,1248.5,11.8144722]
[1672909945953,5.38354892,1248.6,1248.5,11.8144722]
[1672909946374,5.38354892,1248.6,1248.5,11.81451311]
[1672909946691,5.38354892,1248.6,1248.5,10.39505771]
[1672909947638,2.39385759,1248.6,1248.5,11.81449276]
[1672909947952,5.38354892,1248.6,1248.5,10.39505771]
[1672909948166,5.38354892,1248.6,1248.5,11.81450708]
[1672909948786,2.39385759,1248.6,1248.5,11.81450708]
[1672909955305,2.39385759,1248.6,1248.5,12.40622018]
[1672909955510,2.39385759,1248.6,1248.5,17.40622018]
[1672909955720,1.66758443,1248.6,1248.5,17.40622018]
[1672909955934,2.39385759,1248.7,1248.5,17.62624937]
[1672909956144,2.39385759,1248.7,1248.6,12.41940846]
[1672909956348,5.38354892,1248.8,1248.6,12.41940846]
[1672909956554,5.38354892,1248.8,1248.7,11.81917061]
[1672909956776,2.39385759,1248.8,1248.7,12.19922775]
[1672909956985,2.39385759,1248.8,1248.7,12.19925269]
[1672909957408,8.38354892,1248.8,1248.7,9.79853145]
[1672909957830,5.38354892,1248.8,1248.7,9.79853145]
[1672909958038,2.39385759,1248.8,1248.7,10.39972124]
[1672909958247,2.39385759,1248.8,1248.7,12.79857114]
[1672909963079,2.39385759,1248.8,1248.7,15.19929238]
[1672909964873,2.39385759,1248.8,1248.7,12.79857114]
[1672909969070,8.59134892,1248.9,1248.8,3.0]
[1672909969277,6.19749133,1248.9,1248.8,4.19868147]
[1672909969487,8.58898871,1248.9,1248.8,4.19868147]
[1672909969806,6.19749133,1248.9,1248.8,4.19868147]
[1672909972328,5.59872837,1248.9,1248.8,4.19868147]
[1672909972535,8.5884197,1248.9,1248.8,12.19768147]
[1672909972753,5.59872837,1248.9,1248.8,13.99725261]
[1672909973065,5.59872837,1248.9,1248.8,12.19768147]
[1672909973269,5.59872837,1248.9,1248.8,13.99725261]
[1672909975064,5.59872837,1248.9,1248.8,12.19768147]
[1672909975587,5.59872837,1248.9,1248.8,13.99725261]
[1672909975791,5.59872837,1248.9,1248.8,12.19768147]
[1672909976002,5.59872837,1248.9,1248.8,13.99725261]
[1672909976217,5.59872837,1248.9,1248.8,12.19768147]
[1672909977269,2.39092837,1248.9,1248.8,12.19768147]
[1672909977690,5.59872837,1248.9,1248.8,12.19768147]
[1672909978104,5.59872837,1248.9,1248.8,13.99725261]
[1672909978948,5.59872837,1248.9,1248.8,1.19868147]
[1672909980004,8.59872837,1248.9,1248.8,1.19868147]
[1672909980739,11.5884197,1248.9,1248.8,1.19868147]
[1672909982737,8.59872837,1248.9,1248.8,1.19868147]
[1672909982947,9.19749133,1248.9,1248.7,13.99725261]
[1672909983260,5.39088749,1248.8,1248.7,13.99725261]
[1672909984102,5.39088749,1248.8,1248.7,10.99725261]
[1672909984933,5.39088749,1248.8,1248.7,2.99825261]
[1672909985147,8.38057882,1248.8,1248.7,1.19868147]
[1672909985367,5.98969133,1248.8,1248.7,1.19868147]
[1672909986109,9.19749133,1248.8,1248.7,1.19868147]
[1672909988310,11.58908855,1248.8,1248.7,2.99825261]
[1672909988731,9.19749133,1248.8,1248.7,2.99825261]
[1672909990514,9.19749133,1248.8,1248.7,1.19868147]
[1672909990725,6.2078,1248.8,1248.6,2.99825261]
[1672909990925,5.38152345,1248.7,1248.6,2.99825261]
[1672909993463,5.88152345,1248.7,1248.6,1.19868147]
[1672909994506,5.88152345,1248.7,1248.6,2.99825261]
[1672909994722,8.27360307,1248.7,1248.6,2.99825261]
[1672909995136,5.28386782,1248.7,1248.6,1.79957114]
[1672909998407,8.49166782,1248.7,1248.6,1.79957114]
[1672909998932,8.49166782,1248.7,1248.6,2.99886878]
[1672909999458,8.49166782,1248.7,1248.6,1.79957114]
[1672909999671,8.49166782,1248.7,1248.6,2.99887302]
[1672910000719,8.49166782,1248.7,1248.6,1.79957114]
[1672910003242,8.49166782,1248.7,1248.6,2.99872374]
[1672910003555,8.49166782,1248.7,1248.6,1.79957114]
[1672910005138,5.28386782,1248.7,1248.6,1.79957114]
[1672910005346,8.49166782,1248.7,1248.6,1.79957114]
[1672910006289,8.49166782,1248.7,1248.6,2.99870343]
[1672910011552,7.99166782,1248.7,1248.6,2.99870343]
[1672910014067,4.78386782,1248.7,1248.6,2.99870343]
[1672910014277,7.99166782,1248.7,1248.6,1.79957114]
[1672910014806,7.99166782,1248.7,1248.6,2.99890748]
[1672910015007,10.98140307,1248.7,1248.6,2.99909283]
[1672910016806,8.58932345,1248.7,1248.6,1.79957114]
[1672910017121,8.58932345,1248.7,1248.6,4.79957114]
[1672910017432,10.98254522,1248.7,1248.6,4.79957114]
[1672910018170,10.98254522,1248.7,1248.6,1.79957114]
[1672910019007,8.58932345,1248.7,1248.6,4.20029238]
[1672910019221,8.58932345,1248.7,1248.6,7.20029238]
[1672910019440,10.98337943,1248.7,1248.6,7.20029238]
[1672910019963,8.58932345,1248.7,1248.6,7.20029238]
[1672910020595,10.98341238,1248.7,1248.6,7.20029238]
[1672910020802,8.58932345,1248.7,1248.6,7.20029238]
[1672910022801,5.38152345,1248.7,1248.6,5.40072124]
[1672910023012,8.58932345,1248.7,1248.6,5.40072124]
[1672910023536,5.38152345,1248.7,1248.6,5.40072124]
[1672910023851,8.58932345,1248.7,1248.6,5.40072124]
[1672910024058,8.58932345,1248.7,1248.6,2.40072124]
[1672910025327,8.58932345,1248.7,1248.6,5.40072124]
[1672910025843,5.38152345,1248.7,1248.6,2.40072124]
[1672910026059,8.58932345,1248.7,1248.6,2.40072124]
[1672910026683,8.58932345,1248.7,1248.6,5.40072124]
[1672910026899,8.58932345,1248.7,1248.6,6.82010151]
[1672910027949,5.38152345,1248.7,1248.6,6.82010151]
[1672910028160,8.58932345,1248.7,1248.6,6.82010151]
[1672910028477,8.58932345,1248.7,1248.6,3.82010151]
[1672910029628,5.38152345,1248.7,1248.6,3.82010151]
[1672910029838,8.58932345,1248.7,1248.6,6.82010151]
[1672910031113,5.38152345,1248.7,1248.6,6.82010151]
[1672910031422,8.58932345,1248.7,1248.6,6.82010151]
[1672910033847,5.38152345,1248.7,1248.6,6.82010151]
[1672910034048,8.58932345,1248.7,1248.6,3.82010151]
[1672910034260,8.58932345,1248.7,1248.6,6.82010151]
[1672910035003,10.9857118,1248.7,1248.6,15.41933936]
[1672910035204,7.99597655,1248.7,1248.6,15.41933936]
[1672910035524,4.78124081,1248.7,1248.6,15.41933936]
[1672910036788,6.57789291,1248.7,1248.6,15.41933936]
[1672910036999,6.57789291,1248.7,1248.6,16.09671923]
[1672910038682,4.18150456,1248.7,1248.6,16.09671923]
[1672910040994,6.57789291,1248.7,1248.6,16.09671923]
[1672910042575,4.18150456,1248.7,1248.6,16.09671923]
[1672910045406,2.38485246,1248.7,1248.6,16.30356014]
[1672910046028,4.18150456,1248.7,1248.6,19.30301328]
[1672910048559,2.38485246,1248.7,1248.6,19.30301328]
[1672910049295,2.38485246,1248.7,1248.6,16.09521328]
[1672910050873,2.38485246,1248.7,1248.6,16.09401315]
[1672910059486,2.38485246,1248.7,1248.6,16.09352667]
[1672910060956,2.38485246,1248.7,1248.6,13.09576014]
[1672910061369,2.38485246,1248.7,1248.6,16.09343431]
[1672910062744,2.38485246,1248.7,1248.6,13.09576014]
[1672910063998,2.38485246,1248.7,1248.6,16.30356014]
[1672910066419,2.38485246,1248.7,1248.6,19.3013932]
[1672910066944,2.38485246,1248.7,1248.6,16.30356014]
[1672910068836,2.38485246,1248.7,1248.6,13.09576014]
[1672910069046,2.38485246,1248.7,1248.6,16.30356014]
[1672910073042,2.38485246,1248.7,1248.6,19.90160508]
[1672910073668,2.38485246,1248.7,1248.6,16.69380508]
[1672910073880,2.38485246,1248.7,1248.6,19.90160508]
[1672910074079,2.38485246,1248.7,1248.6,16.69380508]
[1672910074507,2.38485246,1248.7,1248.6,19.90160508]
[1672910075565,1.7966521,1248.8,1248.6,19.90160508]
[1672910075779,1.7966521,1248.8,1248.7,20.41881862]
[1672910081234,4.19304045,1248.8,1248.7,20.41881862]
[1672910081862,1.7966521,1248.8,1248.7,20.41881862]
[1672910082493,4.19304045,1248.8,1248.7,20.41881862]
[1672910085339,2.39638835,1248.8,1248.7,20.41881862]
[1672910090804,2.39638835,1248.8,1248.7,17.41881862]
[1672910091015,5.38620145,1248.8,1248.7,16.81988462]
[1672910091223,5.98973525,1248.8,1248.7,16.81988462]
[1672910092170,5.98973525,1248.8,1248.7,17.20174347]
[1672910092586,5.98973525,1248.8,1248.7,14.80023912]
[1672910093535,5.98973525,1248.8,1248.7,9.80023912]
[1672910093741,5.98973525,1248.8,1248.7,1.80123912]
[1672910093948,9.19753525,1248.8,1248.7,1.80123912]
[1672910094906,9.19753525,1248.8,1248.7,6.80123912]
[1672910098473,2.98973525,1248.8,1248.7,8.000997]
[1672910098680,6.19753525,1248.8,1248.7,8.000997]
[1672910098885,2.98973525,1248.8,1248.7,8.000997]
[1672910099100,6.19753525,1248.8,1248.7,8.000997]
[1672910102994,6.19753525,1248.8,1248.7,6.19975788]
[1672910103831,2.98973525,1248.8,1248.7,6.19975788]
[1672910104041,6.19753525,1248.8,1248.7,6.19975788]
[1672910105722,8.59125786,1248.8,1248.7,8.000997]
[1672910107511,6.19753525,1248.8,1248.7,6.19975788]
[1672910108355,6.19753525,1248.8,1248.6,3.000997]
[1672910108569,2.98973525,1248.7,1248.6,1.19975788]
[1672910108882,5.98973525,1248.7,1248.6,1.19975788]
[1672910109291,3.0,1248.7,1248.5,1.19975788]
[1672910109505,6.19795319,1248.6,1248.5,1.19975788]
[1672910109715,8.59017556,1248.6,1248.5,1.19975788]
[1672910110137,6.19795319,1248.6,1248.5,1.19975788]
[1672910110877,8.58877982,1248.6,1248.4,6.000997]
[1672910111089,1.7931232,1248.5,1248.4,6.000997]
[1672910111297,2.2931232,1248.5,1248.4,6.000997]
[1672910112138,2.2931232,1248.5,1248.4,3.000997]
[1672910112558,2.2931232,1248.5,1248.4,6.000997]
[1672910112876,2.89082663,1248.5,1248.3,8.000997]
[1672910113085,4.99999574,1248.4,1248.3,8.000997]
[1672910113284,7.99999574,1248.4,1248.3,8.000997]
[1672910114128,7.99999574,1248.4,1248.3,11.000997]
[1672910114341,7.99999574,1248.4,1248.3,8.000997]
[1672910114541,6.2078,1248.4,1248.3,6.80123912]
[1672910114869,6.2078,1248.4,1248.3,7.99861394]
[1672910116964,3.2078,1248.4,1248.3,7.99861394]
[1672910121706,2.29219574,1248.5,1248.3,7.99861394]
[1672910122015,6.2078,1248.4,1248.3,7.99861394]
[1672910123594,6.2078,1248.4,1248.3,6.19737482]
[1672910124222,3.2078,1248.4,1248.3,6.19737482]
[1672910124428,3.2078,1248.4,1248.3,7.99861394]
[1672910126324,3.2078,1248.4,1248.3,10.99861394]
[1672910127787,3.2078,1248.4,1248.3,9.80123912]
[1672910128108,6.2078,1248.4,1248.3,10.99835418]
[1672910128321,6.2078,1248.4,1248.3,9.80123912]
[1672910128842,3.2078,1248.4,1248.3,9.80123912]
[1672910129888,3.2078,1248.4,1248.3,12.20274347]
[1672910130738,3.2078,1248.4,1248.3,10.40150435]
[1672910131997,3.2078,1248.4,1248.3,12.19821445]
[1672910132207,3.2078,1248.4,1248.3,10.40150435]
[1672910132734,3.2078,1248.4,1248.3,12.19837327]
[1672910133680,3.2078,1248.4,1248.3,9.79686892]
[1672910134095,4.99999574,1248.4,1248.3,9.79686892]
[1672910134729,1.79219574,1248.4,1248.3,9.79686892]
[1672910135051,4.99999574,1248.4,1248.3,9.79686892]
[1672910135471,3.2078,1248.4,1248.3,9.79686892]
[1672910135781,4.99999574,1248.4,1248.3,9.79686892]